[Event "4NCL 2023-2024"]
[Site "Daventry"]
[Date "2024.05.04"]
[Round "9.1"]
[White "Jones, Gawain C B"]
[Black "Adams, Michael"]
[Result "1-0"]
[ECO "E08"]
[WhiteElo "2620"]
[BlackElo "2677"]
[Annotator "TA"]
[PlyCount "131"]
[EventDate "2023.11.11"]
[EventType "team-tourn"]
[EventCountry "ENG"]
[SourceTitle "playchess.com"]
[Source "ChessBase"]
[SourceQuality "1"]
[TimeControl "40/6000+30:3000+30"]

{[%evp 47,131,68,58,68,67,74,75,81,72,70,82,46,50,26,49,49,58,56,60,73,71,65,89,48,50,0,88,70,547,100,80,59,64,0,70,56,57,55,70,25,162,158,187,194,164,183,212,208,183,0,191,152,189,77,74,0,112,114,153,129,149,148,147,143,141,141,154,0,0,0,89,91,91,95,333,357,304,340,248,74,965,893,29977,29978,29976,29979]} 1. c4 {[%emt 0:03:39]} Nf6 {[%emt 0:00:12]} 2. Nf3 {[%emt 0:00:47]} e6 {[%emt 0:00:14]} 3. g3 {[%emt 0:00:06]} d5 {[%emt 0:00:11]} 4. Bg2 {[%emt 0:00:04]} Be7 {[%emt 0:00:05]} 5. O-O {[%emt 0:00:18]} O-O {[%emt 0:00:08]} 6. d4 {[%emt 0:00:04]} c6 {[%emt 0:00:37]} 7. b3 {[%emt 0:01:34]} b6 {[%emt 0:01:50]} 8. Bb2 {[%emt 0:01:05]} Nbd7 {[%emt 0:07:03]} 9. Qc2 {[%emt 0:00:51]} a5 {[%emt 0:10:25]} 10. a3 $5 {[%emt 0:03:20][%mdl 4] Leaves trodden paths. E08: Closed Catalan: Main Line: 7 Qc2.} Ba6 {[%emt 0:02:01]} 11. Nbd2 {[%emt 0:01:55]} Rc8 {[%emt 0:03:31]} 12. Rfe1 {[%emt 0:12:45]} c5 {[%emt 0:05:54]} 13. e4 $146 {[%emt 0:00:58]} ({Predecessor:} 13. e3 dxc4 14. bxc4 cxd4 15. exd4 Bxc4 16. Rac1 Bd5 17. Qxc8 Qxc8 18. Rxc8 Rxc8 19. Rc1 {0-1 Janas,P (1756)-Vegh,V (1932) SVK-chT3A2 1213 2012 (4.4)}) 13... dxe4 {[%emt 0:12:29]} 14. Nxe4 {[%emt 0:03:15]} a4 {[%emt 0:00:16]} 15. d5 {[%emt 0:10:59]} exd5 {[%emt 0:09:23]} 16. cxd5 {[%emt 0:01:01]} Nxe4 {[%emt 0:04:38]} 17. Qxe4 {[%emt 0:00:56]} Bf6 {[%emt 0:00:14]} 18. Bxf6 {[%emt 0:00:30]} Nxf6 {[%emt 0:00:05]} 19. Qxa4 {[%emt 0:00:06]} Ra8 {[%emt 0:00:38]} 20. Ne5 {[%emt 0:07:06]} Bf1 {[%emt 0:02:52]} 21. Nc6 {[%emt 0:13:38]} Rxa4 {[%emt 0:01:38]} 22. Nxd8 {[%emt 0:00:09]} Bxg2 {[%emt 0:00:06]} 23. Nc6 {[%emt 0:01:25]} Raa8 {[%emt 0:14:27]} 24. Ne7+ {[%emt 0:02:41]} Kh8 {[%emt 0:00:02]} 25. Kxg2 {[%emt 0:00:07]} Rfd8 {[%emt 0:00:11]} 26. Rad1 {[%emt 0:04:37]} Rd6 {[%emt 0:01:44]} (26... Rxa3 $2 27. d6 g6 (27... Rxb3 $2 28. Nc6 $18) 28. Nc6 $18) 27. Nf5 {[%emt 0:12:10]} Rxd5 {[%emt 0:01:08]} 28. Rxd5 {[%emt 0:00:12]} Nxd5 {[%emt 0:00:01]} 29. Nd6 {[%emt 0:02:31]} Kg8 {[%emt 0:07:32]} 30. a4 {[%emt 0:01:36]} Kf8 {[%emt 0:01:38]} 31. Nc4 {[%emt 0:06:57]} Rb8 {[%emt 0:04:33]} 32. Rd1 {[%emt 0:04:56]} Rd8 {[%emt 0:03:06]} 33. Kf3 {[%emt 0:01:02]} (33. Nxb6 Nf4+ (33... Ne3+ $2 34. fxe3 Rxd1 35. a5 $19) 34. gxf4 Rxd1 $19) 33... Ke7 {[%emt 0:00:33]} 34. g4 $1 {[%emt 0:04:50]} g5 {[%emt 0:03:32]} 35. Re1+ {[%emt 0:00:12]} Kf6 {[%emt 0:00:32]} 36. Rd1 {[%emt 0:00:24]} (36. Kg3 $14) 36... Rd7 {[%emt 0:03:34]} (36... Ke7 $1 $11) 37. Rd2 {[%emt 0:01:04]} h6 $2 {[%emt 0:02:20][%mdl 8192]} (37... Ke7 $1 $14) 38. Rd1 $2 {[%emt 0:02:07]} (38. Ne3 $1 $18 {is the precise move to win.} Ke6 39. Nxd5 Rxd5 40. Rxd5 Kxd5 41. Ke3) 38... Ke7 {[%emt 0:02:15]} 39. Re1+ {[%emt 0:01:43]} Kf8 {[%emt 0:00:44]} 40. Rd1 {[%emt 0:00:30]} Ke7 {[%emt 0:00:34]} 41. Kg3 {[%emt 0:16:15]} Ke6 {[%emt 0:19:56]} 42. Re1+ {[%emt 0:10:33]} Kf6 {[%emt 0:00:06]} 43. h4 {[%emt 0:01:29]} Rd8 {[%emt 0:06:49]} (43... Re7 $11 44. Rd1 Ke6) 44. Rd1 $1 $18 {[%emt 0:01:41]} Ke7 {[%emt 0:00:46]} 45. h5 {[%emt 0:01:43]} Rd7 {[%emt 0:01:13]} 46. Kf3 {[%emt 0:01:50]} Ke6 {[%emt 0:08:40]} 47. Re1+ {[%emt 0:11:57]} Kf6 {[%emt 0:00:08]} 48. Rd1 $2 {[%emt 0:01:01]} (48. Re8 $18) 48... Ke7 $2 {[%emt 0:03:23]} (48... Ke6 $11) 49. Rd2 {[%emt 0:01:38]} Rd8 {[%emt 0:02:32]} 50. Re2+ {[%emt 0:03:31]} (50. Ne3 $18 Nxe3 51. Rxd8 (51. Kxe3 Rf8 $11) 51... Kxd8 52. Kxe3 (52. fxe3 $2 {too greedy.} Kd7 $19)) 50... Kf6 $16 {[%emt 0:00:19]} 51. Re1 {[%emt 0:00:26]} (51. Re4 $16) 51... Rb8 {[%emt 0:02:44]} (51... Rd7 $1 $11) 52. Nd6 $16 {[%emt 0:00:42]} Nc7 {[%emt 0:00:32]} 53. Nf5 {[%emt 0:04:15]} Ne6 {[%emt 0:02:49]} 54. Rd1 $1 {[%emt 0:00:14]} (54. Nxh6 Nd4+ 55. Kg2 Rh8 $11) 54... b5 {[%emt 0:05:03] [#]} 55. a5 $1 {[%emt 0:00:12]} (55. Nxh6 Nd4+ 56. Kg3 Rh8 $11) 55... Ra8 {[%emt 0:02:25] [#]} 56. Ra1 $1 {[%emt 0:00:11]} Ke5 {[%emt 0:00:06]} 57. Ke3 $2 {[%emt 0:00:29]} (57. Kg3 $16) 57... Ra6 $1 $11 {[%emt 0:00:50]} 58. f3 {[%emt 0:01:15]} Nd8 {[%emt 0:03:09]} (58... b4 $11 {keeps the balance.}) 59. Nxh6 $16 {[%emt 0:00:45]} Rxh6 {[%emt 0:01:53]} 60. a6 {[%emt 0:00:04]} Nc6 $2 {[%emt 0:00:05]} (60... Ne6 $16) 61. a7 $18 {[%emt 0:00:04]} Nxa7 {[%emt 0:00:02]} 62. Rxa7 {[%emt 0:00:04]} Rf6 {[%emt 0:01:30]} 63. Ra8 $2 {[%emt 0:03:15]} (63. Rb7 $18 {has better winning chances.} b4 64. Rd7) 63... c4 $2 {[%emt 0:02:24][%mdl 8192]} (63... Re6 $16) 64. bxc4 $18 {[%emt 0:00:16]} bxc4 {[%emt 0:01:06]} 65. Ra5+ {[%emt 0:00:11]} Kd6 {[%emt 0:00:03]} 66. Ra6+ {[%emt 0:01:19]} 1-0

[Event "4NCL 2023-2024"]
[Site "Daventry"]
[Date "2024.05.04"]
[Round "9.2"]
[White "Harvey, Marcus R"]
[Black "Rowson, Jonathan"]
[Result "1/2-1/2"]
[ECO "A25"]
[WhiteElo "2484"]
[BlackElo "2527"]
[Annotator "TA"]
[PlyCount "118"]
[EventDate "2023.11.11"]
[EventType "team-tourn"]
[EventCountry "ENG"]
[SourceTitle "playchess.com"]
[Source "ChessBase"]
[SourceQuality "1"]
[TimeControl "40/6000+30:3000+30"]

{[%evp 9,118,4,12,4,12,7,14,5,20,0,8,0,0,0,27,10,11,-14,0,-21,15,6,14,-42,0,0,0,0,0,0,0,0,0,-32,-31,-81,-53,-55,-64,-54,-50,-72,-74,-83,-58,-94,-83,-95,-97,-123,-91,-116,-93,-116,-120,-143,-108,-144,-97,-145,-67,-69,-96,-136,-150,-178,-179,-166,-139,-148,-54,-61,-52,-83,-58,-58,-66,-60,-43,-65,-82,-68,-35,-74,-70,-68,-54,-49,0,-64,-65,-118,-108,-107,-70,-118,-72,-101,-101,-101,-102,-108,-106,-163,-100,-209,0,-146,-91,-89,0]} 1. c4 {[%emt 0:01:23]} e5 {[%emt 0:01:05]} 2. Nc3 {[%emt 0:00:04]} Nc6 {[%emt 0:01:13]} 3. g3 {[%emt 0:00:53]} g6 {[%emt 0:00:17]} 4. h4 {[%emt 0:01:01]} h6 {[%emt 0:11:39]} 5. Bg2 {[%emt 0:03:42]} d6 {[%emt 0:00:30]} 6. Rb1 {[%emt 0:03:02]} Bg7 {[%emt 0:00:53]} 7. b4 {[%emt 0:00:54]} a6 {[%emt 0:03:09]} 8. d3 {[%emt 0:07:10] The position is equal.} f5 {[%emt 0:00:43]} 9. Bd2 {[%emt 0:03:38]} Nf6 {[%emt 0:00:40]} 10. Qc1 {[%emt 0:01:40]} Be6 {[%emt 0:08:57]} 11. Nd5 {[%emt 0:00:40]} Bf7 {[%emt 0:10:53]} 12. Nxf6+ {[%emt 0:06:35]} Qxf6 {[%emt 0:01:12]} 13. e3 {[%emt 0:00:02] [#]} e4 $1 {[%emt 0:09:26]} 14. d4 {[%emt 0:03:56][%cal Bd3d4,Bd4d5][%mdl 32] Wards off Ne5} (14. dxe4 Ne5) 14... Ne7 {[%emt 0:04:25]} 15. d5 {[%emt 0:04:52]} g5 {[%emt 0:09:34]} 16. h5 {[%emt 0:00:41]} (16. Ne2 $11) 16... Ng8 {[%emt 0:07:22]} 17. Ne2 {[%emt 0:03:29] Strongly threatening Bc3.} Qe7 {[%emt 0:00:17]} 18. g4 {[%emt 0:01:25]} fxg4 {[%emt 0:05:36]} 19. Ng3 {[%emt 0:09:00][%cal Og3f5]} Be5 {[%emt 0:01:02]} 20. Bc3 {[%emt 0:00:34]} Nf6 {[%emt 0:01:48]} 21. Qb2 {[%emt 0:08:44]} Nd7 {[%emt 0:03:02]} 22. Rc1 {[%emt 0:01:38]} (22. O-O $15) 22... O-O {[%emt 0:03:42]} 23. Bxe5 {[%emt 0:06:32]} Nxe5 {[%emt 0:00:51]} 24. Bxe4 {[%emt 0:00:07]} Qf6 {[%emt 0:00:54]} 25. Qd2 {[%emt 0:04:38]} Be8 {[%emt 0:01:27]} 26. O-O {[%emt 0:04:28]} Bd7 {[%emt 0:00:07]} 27. Qd4 {[%emt 0:07:01]} a5 {[%emt 0:05:44]} 28. b5 {[%emt 0:02:23]} b6 {[%emt 0:00:15]} 29. Kh1 {[%emt 0:00:46]} Rae8 {[%emt 0:01:04]} 30. Rc2 {[%emt 0:03:20]} Re7 {[%emt 0:01:22]} 31. Rg1 {[%emt 0:01:09]} Ref7 {[%emt 0:01:16]} 32. Rg2 {[%emt 0:00:59]} Qg7 {[%emt 0:00:54]} 33. Rh2 {[%emt 0:03:00]} Bc8 {[%emt 0:01:59]} (33... Rf6 $142 34. Qc3 Qf7) 34. Kg2 {[%emt 0:05:58]} (34. Qc3 $142) 34... Re7 {[%emt 0:01:34]} (34... Rf6 $1 $17 35. Qd1 Qf7) 35. Kf1 {[%emt 0:00:24]} Rf6 {[%emt 0:00:45]} 36. Ke2 {[%emt 0:01:28]} Qf8 {[%emt 0:00:40][%cal Of6f4]} 37. Kd1 {[%emt 0:01:00]} Ref7 $1 {[%emt 0:00:46][%cal Rf6f2]} 38. Qd2 {[%emt 0:01:23] [#]} Rf3 $1 {[%emt 0:04:40][%cal Of3g3][%mdl 512] ...Rxg3! is the strong threat.} 39. Rg2 {[%emt 0:01:12] [#]} Re7 {[%emt 0:02:14]} 40. Kc1 $15 {[%emt 0:02:50]} Rf6 {[%emt 0:00:42][%cal Oc8f5]} 41. Qd4 {[%emt 0:53:07]} Ref7 {[%emt 0:51:20]} 42. Qd2 {[%emt 0:00:24]} Qe7 {[%emt 0:00:00]} 43. Qd4 {[%emt 0:00:00]} Bd7 {[%emt 0:00:00]} 44. Kd1 {[%emt 0:00:00]} Qf8 {[%emt 0:00:00]} 45. Qd2 {[%emt 0:00:00]} Be8 {[%emt 0:00:00]} 46. Ke1 {[%emt 0:00:00]} Re7 {[%emt 0:00:00][%cal Of6f4] And now ...Rf4! would win.} 47. Kf1 {[%emt 0:00:00]} Nd7 {[%emt 0:00:00][%cal Oe8h5]} 48. Qd4 $1 {[%emt 0:00:00]} Ne5 {[%emt 0:00:00]} (48... Nc5 $15 49. Kg1 Nd7) 49. Rc1 {[%emt 0:00:00]} (49. Qd2 $1 $11) 49... Bd7 {[%emt 0:00:00]} 50. Rc2 {[%emt 0:00:00]} ({White should try} 50. Qd2 $15) 50... Ref7 {[%emt 0:00:00]} 51. Rb2 {[%emt 0:00:00]} Qe7 {[%emt 0:00:00]} 52. Rc2 {[%emt 0:00:00]} ({White should play} 52. Qc3 $1 $15) 52... Kf8 {[%emt 0:00:00]} (52... Rf8 $142 53. Qc3 Kf7) 53. Rb2 {[%emt 0:00:00]} Ke8 {[%emt 0:00:00]} 54. Rc2 {[%emt 0:00:00]} Kd8 {[%emt 0:00:00]} 55. Rb2 {[%emt 0:00:00]} Rf8 {[%emt 0:00:00]} 56. Rc2 {[%emt 0:00:00]} (56. Qc3 $17) 56... Be8 {[%emt 0:00:00]} (56... Qf7 $19 {[%cal Od7f5] Threatens to win with ...Bf5!} 57. Qc3 Qe8) 57. Bd3 {[%emt 0:00:00]} (57. Qc3 $17 {might work better.}) 57... Bd7 {[%emt 0:00:00]} 58. Be4 $1 {[%emt 0:00:00]} Bc8 {[%emt 0:00:00]} (58... Kc8 $142 59. Qc3 Kb8) 59. Rb2 $17 {[%emt 0:00:00]} Bd7 {[%emt 0:00:00] Weighted Error Value: White=0.20 (precise) /Black=0.24 (precise) .  Mistake:       	White=8     	Black=8      Inaccurate:     	White=7     	Black=7      OK:         	White=18    	Black=18     Best:        	White=1     	Black=2      Strong:       	White=2     	Black=1} ({Better is} 59... R6f7 $17 60. a4 Bd7) 1/2-1/2

[Event "4NCL 2023-2024"]
[Site "Daventry"]
[Date "2024.05.04"]
[Round "9.3"]
[White "Alsina Leal, Daniel"]
[Black "Wadsworth, Matthew J"]
[Result "1/2-1/2"]
[ECO "C02"]
[WhiteElo "2510"]
[BlackElo "2470"]
[Annotator "TA"]
[PlyCount "136"]
[EventDate "2023.11.11"]
[EventType "team-tourn"]
[EventCountry "ENG"]
[SourceTitle "playchess.com"]
[Source "ChessBase"]
[SourceQuality "1"]
[TimeControl "40/6000+30:3000+30"]

{[%evp 44,136,0,0,0,0,0,0,0,0,0,0,8,0,0,0,0,0,0,0,0,-38,-38,-38,-12,-12,-12,-12,-12,-12,-12,-31,-31,-31,0,-31,-31,-31,-8,-31,-8,-31,-31,-31,-31,-31,-31,-31,-31,-31,-31,-57,-31,-31,-31,-49,-31,-31,-31,-41,0,-56,0,-56,-56,-56,-56,-56,-56,-56,0,-56,-56,-56,-56,-56,0,-56,0,-56,-56,-56,-56,-56,-16,-16,-16,-16,-16,-16,0,-8,-8,-8,-8]} 1. e4 {[%emt 0:00:03]} e6 {[%emt 0:00:17]} 2. d4 {[%emt 0:00:11]} d5 {[%emt 0:00:08]} 3. e5 {[%emt 0:00:37]} c5 {[%emt 0:00:15]} 4. c3 {[%emt 0:00:07]} Nc6 {[%emt 0:00:31]} 5. Nf3 {[%emt 0:00:08]} Qb6 {[%emt 0:00:27]} 6. Bd3 {[%emt 0:00:23]} cxd4 {[%emt 0:00:55]} 7. O-O $1 {[%emt 0:00:21][%mdl 4] outshines the older 7.cxd4. C02: French: Advance Variation.} Bd7 {[%emt 0:01:18]} 8. Re1 {[%emt 0:00:21]} h6 {[%emt 0:02:49]} 9. Nbd2 {[%emt 0:08:42]} Nge7 {[%emt 0:02:38]} 10. Nb3 {[%emt 0:05:04]} dxc3 {[%emt 0:02:29]} 11. bxc3 {[%emt 0:01:53]} Nf5 $146 {[%emt 0:04:30]} ({Predecessor:} 11... Na5 12. Be3 Qc7 13. Nxa5 Qxa5 14. Rb1 b5 15. Qe2 a6 16. a4 Nc6 17. axb5 axb5 18. Rxb5 {½-½ Acs,P (2560)-Torma,R (2429) HUN-chT 2122 2021 (4.4)}) 12. Rb1 {[%emt 0:09:01]} Qc7 {[%emt 0:02:08]} 13. Bxf5 {[%emt 0:32:42]} exf5 {[%emt 0:00:09]} 14. Nbd4 {[%emt 0:00:54]} Be6 {[%emt 0:08:23]} 15. Qb3 {[%emt 0:16:35]} Be7 {[%emt 0:06:59]} 16. Ba3 {[%emt 0:08:37]} O-O {[%emt 0:08:35]} 17. Bxe7 {[%emt 0:00:51]} Qxe7 {[%emt 0:04:13]} 18. Qxb7 {[%emt 0:00:22]} Qxb7 {[%emt 0:01:00]} 19. Rxb7 {[%emt 0:00:02]} Rfc8 {[%emt 0:01:13]} 20. Nxe6 {[%emt 0:08:26]} fxe6 {[%emt 0:00:08]} 21. Reb1 {[%emt 0:01:19]} Nd8 {[%emt 0:13:32]} 22. Rd7 {[%emt 0:00:51]} Rxc3 {[%emt 0:04:32]} 23. h4 {[%emt 0:00:22]} g6 {[%emt 0:05:44]} 24. a4 {[%emt 0:06:16]} Rac8 {[%emt 0:05:58]} 25. Rxa7 {[%emt 0:01:03]} Rc1+ {[%emt 0:02:12]} 26. Rxc1 {[%emt 0:00:05]} Rxc1+ {[%emt 0:00:08]} 27. Kh2 {[%emt 0:00:01]} Nc6 {[%emt 0:00:26]} 28. Ra8+ {[%emt 0:05:21]} (28. Rc7 $5 Rc4 $8 29. a5 Nxa5 30. Re7 $15) 28... Kg7 {[%emt 0:02:27]} 29. a5 {[%emt 0:00:53]} Rc4 $1 {[%emt 0:01:38]} 30. a6 {[%emt 0:01:49]} Ra4 {[%emt 0:00:48]} 31. g3 {[%emt 0:01:02]} d4 {[%emt 0:07:57]} 32. Rc8 {[%emt 0:01:11]} Rxa6 {[%emt 0:01:12]} 33. Rc7+ {[%emt 0:00:01]} Kf8 {[%emt 0:01:09]} 34. Rd7 $1 {[%emt 0:00:23]} Ra5 {[%emt 0:01:54]} 35. Nxd4 {[%emt 0:00:50]} Nxd4 36. Rxd4 {[%emt 0:00:02]} Rxe5 {[%emt 0:02:01]} 37. Rd7 {[%emt 0:00:56]} Rd5 {[%emt 0:01:07]} 38. Ra7 {[%emt 0:00:42]} e5 {[%emt 0:01:18]} 39. f3 {[%emt 0:00:34]} h5 {[%emt 0:03:04]} 40. Kg2 {[%emt 0:00:28]} Rd6 {[%emt 0:01:37]} 41. Kf2 {[%emt 0:50:25]} Re6 {[%emt 0:51:17]} 42. Rb7 {[%emt 0:00:00]} Re7 {[%emt 0:00:00]} 43. Rb6 {[%emt 0:00:00]} Kf7 {[%emt 0:00:00]} 44. Ra6 {[%emt 0:00:00]} Re6 {[%emt 0:00:00]} 45. Ra7+ {[%emt 0:00:00]} Kf6 {[%emt 0:00:00]} 46. Ra8 {[%emt 0:00:00]} Rb6 {[%emt 0:00:00]} 47. Re8 {[%emt 0:00:00]} Ra6 {[%emt 0:00:00]} 48. Rf8+ {[%emt 0:00:00]} Ke7 {[%emt 0:00:00]} 49. Rg8 {[%emt 0:00:00]} Kf7 {[%emt 0:00:00]} 50. Rb8 {[%emt 0:00:00]} Ra2+ {[%emt 0:00:00]} 51. Kf1 {[%emt 0:00:00]} Ra6 {[%emt 0:00:00]} 52. Kf2 {[%emt 0:00:00]} Ke7 {[%emt 0:00:00]} 53. Rg8 $1 {[%emt 0:00:00]} Ra2+ {[%emt 0:00:00]} 54. Kf1 {[%emt 0:00:00]} Kf6 {[%emt 0:00:00]} 55. Rf8+ {[%emt 0:00:00]} Ke6 {[%emt 0:00:00]} 56. Rg8 {[%emt 0:00:00]} Kf7 {[%emt 0:00:00]} 57. Rb8 $1 {[%emt 0:00:00]} Rd2 {[%emt 0:00:00]} 58. Rb6 {[%emt 0:00:00]} Rd4 {[%emt 0:00:00]} 59. Kf2 {[%emt 0:00:00]} Rd2+ {[%emt 0:00:00]} 60. Kf1 {[%emt 0:00:00]} Rd4 {[%emt 0:00:00]} 61. Kf2 $1 {[%emt 0:00:00]} f4 {[%emt 0:00:00]} 62. gxf4 {[%emt 0:00:00]} Rxf4 {[%emt 0:00:00]} 63. Kg3 {[%emt 0:00:00]} Rf6 {[%emt 0:00:00]} 64. Rb4 {[%emt 0:00:00]} Re6 {[%emt 0:00:00]} 65. Re4 {[%emt 0:00:00]} Kf6 {[%emt 0:00:00]} 66. f4 {[%emt 0:00:00]} Kf5 {[%emt 0:00:00]} 67. Kf3 {[%emt 0:00:00]} Re8 {[%emt 0:00:06]} 68. Rxe5+ {[%emt 0:00:00]} Rxe5 {[%emt 0:00:08]} 1/2-1/2

[Event "4NCL 2023-2024"]
[Site "Daventry"]
[Date "2024.05.04"]
[Round "9.4"]
[White "Speelman, Jon S"]
[Black "Palliser, Richard J D"]
[Result "1-0"]
[ECO "A48"]
[WhiteElo "2497"]
[BlackElo "2377"]
[Annotator "RC"]
[PlyCount "79"]
[EventDate "2023.11.11"]
[EventType "team-tourn"]
[EventCountry "ENG"]
[SourceTitle "playchess.com"]
[Source "ChessBase"]
[SourceQuality "1"]
[TimeControl "40/6000+30:3000+30"]

1. d4 {[%emt 0:00:11]} Nf6 {[%emt 0:00:07]} 2. Nf3 {[%emt 0:00:29]} g6 {[%emt 0:00:19]} 3. Bf4 {[%emt 0:01:18]} Bg7 {[%emt 0:00:18]} 4. e3 {[%emt 0:00:05]} d6 {[%emt 0:00:14]} 5. h3 {[%emt 0:00:05]} O-O {[%emt 0:00:06]} 6. Nbd2 {[%emt 0:00:30]} Nbd7 {[%emt 0:02:29]} 7. Be2 {[%emt 0:00:26]} b6 {[%emt 0:00:47]} 8. O-O {[%emt 0:00:57]} Bb7 {[%emt 0:00:05]} 9. a4 {[%emt 0:01:57]} a5 {[%emt 0:03:59]} 10. c3 {[%emt 0:01:11]} Re8 {[%emt 0:08:46]} 11. Bh2 {[%emt 0:07:54]} e5 {[%emt 0:03:15]} 12. Nc4 {[%emt 0:03:40]} Ne4 {[%emt 0:27:50]} 13. Re1 {[%emt 0:08:15]} Qe7 {[%emt 0:00:38]} 14. Bf1 {[%emt 0:02:59]} f5 {[%emt 0:10:12]} 15. Qc2 {[%emt 0:05:50]} g5 {[%emt 0:07:53]} 16. Nfd2 {[%emt 0:04:21]} Nxd2 {[%emt 0:02:20]} 17. Qxd2 {[%emt 0:00:19]} Qf7 {[%emt 0:07:08]} 18. Na3 {[%emt 0:01:39]} e4 {[%emt 0:05:44]} 19. Nb5 {[%emt 0:02:01]} Nf6 {[%emt 0:00:25]} 20. c4 {[%emt 0:00:32]} Rad8 {[%emt 0:07:26]} 21. c5 {[%emt 0:03:24]} dxc5 {[%emt 0:00:25]} 22. Bxc7 {[%emt 0:00:07]} cxd4 {[%emt 0:05:45]} 23. Bxd8 {[%emt 0:03:57]} Rxd8 {[%emt 0:00:04]} 24. Nxd4 {[%emt 0:02:03]} g4 {[%emt 0:02:56]} 25. Rac1 {[%emt 0:04:55]} gxh3 {[%emt 0:00:18]} 26. Bc4 {[%emt 0:00:19]} Nd5 {[%emt 0:08:30]} 27. g3 {[%emt 0:01:42]} Kh8 {[%emt 0:00:51]} 28. Ne2 {[%emt 0:01:53]} Qh5 {[%emt 0:03:48]} 29. Kh2 {[%emt 0:03:47]} Bf6 {[%emt 0:00:54]} 30. Bxd5 {[%emt 0:01:03]} Rxd5 {[%emt 0:00:50]} 31. Nf4 {[%emt 0:00:31]} Rxd2 {[%emt 0:00:30]} 32. Nxh5 {[%emt 0:00:05]} Rxf2+ {[%emt 0:00:56]} 33. Kxh3 {[%emt 0:00:06]} Be5 {[%emt 0:00:38]} 34. Red1 {[%emt 0:00:48]} Kg8 {[%emt 0:00:25]} 35. Rd8+ {[%emt 0:00:23]} Kf7 {[%emt 0:00:03]} 36. Rd7+ {[%emt 0:00:05]} Kg6 {[%emt 0:00:02]} 37. Nf4+ {[%emt 0:00:12]} Bxf4 {[%emt 0:00:05]} 38. gxf4 {[%emt 0:00:51]} Ba6 {[%emt 0:01:36]} 39. Rc6+ {[%emt 0:00:09]} Kh5 {[%emt 0:00:01]} 40. Rxh7# {[%emt 0:49:31]} 1-0

[Event "4NCL 2023-2024"]
[Site "Daventry"]
[Date "2024.05.04"]
[Round "9.5"]
[White "Camacho Collados, Jose"]
[Black "Gasanov, Eldar"]
[Result "1-0"]
[ECO "A46"]
[WhiteElo "2366"]
[BlackElo "2475"]
[Annotator "TA"]
[PlyCount "95"]
[EventDate "2023.11.11"]
[EventType "team-tourn"]
[EventCountry "ENG"]
[SourceTitle "playchess.com"]
[Source "ChessBase"]
[SourceQuality "1"]
[TimeControl "40/6000+30:3000+30"]

{[%evp 9,95,0,0,0,12,9,5,1,30,29,25,0,22,24,34,23,29,28,17,37,23,0,0,0,0,0,0,0,0,0,0,0,0,0,0,0,0,0,0,0,17,12,13,28,15,22,28,22,20,31,29,15,24,-14,-37,-12,-19,-116,104,118,109,102,95,85,93,90,157,160,250,241,271,272,279,287,307,265,265,264,471,473,527,514,629,646,619,649,620,610]} 1. d4 {[%emt 0:00:02]} Nf6 {[%emt 0:01:08]} 2. Nf3 {[%emt 0:00:06]} e6 {[%emt 0:00:28]} 3. Bg5 {[%emt 0:00:07]} h6 {[%emt 0:00:31]} 4. Bh4 {[%emt 0:00:05]} d6 {[%emt 0:00:39]} 5. Nbd2 {[%emt 0:00:10]} g5 {[%emt 0:00:34]} 6. Bg3 {[%emt 0:00:03] A46: 1 d4 Nf6 2 Nf3 e6: Torre, London and Colle Systems.} Nh5 {[%emt 0:00:21]} 7. e4 {[%emt 0:00:04]} Bg7 {[%emt 0:00:58]} 8. c3 {[%emt 0:00:03]} Qe7 {[%emt 0:02:00]} 9. Bd3 {[%emt 0:00:06]} Nd7 {[%emt 0:06:12]} 10. O-O {[%emt 0:02:00] was the old line (10.Qe2).} O-O {[%emt 0:05:02]} 11. Re1 {[%emt 0:01:43]} b6 $146 {[%emt 0:12:01]} ({Predecessor:} 11... c5 12. Nc4 Nxg3 13. hxg3 cxd4 14. cxd4 b6 15. d5 Ba6 16. dxe6 fxe6 17. Nxd6 Qxd6 18. Bxa6 Qxd1 19. Raxd1 {0-1 Rudolf,M (2328)-Nikolov,M (2533) Zagreb Hulak Memorial op 4th 2019 (9)}) 12. Nf1 {[%emt 0:04:47]} c5 {[%emt 0:11:27]} 13. d5 {[%emt 0:03:02]} g4 {[%emt 0:18:31]} 14. N3d2 {[%emt 0:02:28]} Nxg3 {[%emt 0:03:57]} 15. Nxg3 {[%emt 0:04:36]} Ne5 {[%emt 0:00:31]} 16. Nc4 {[%emt 0:04:20]} Nxd3 {[%emt 0:03:27]} 17. Qxd3 {[%emt 0:00:09]} Ba6 {[%emt 0:00:25]} 18. a4 {[%emt 0:04:34]} Qg5 {[%emt 0:06:19]} 19. a5 {[%emt 0:06:19]} Bb5 {[%emt 0:04:19]} 20. Nf1 {[%emt 0:06:33]} exd5 {[%emt 0:04:23]} 21. exd5 {[%emt 0:00:10]} Rae8 {[%emt 0:00:14]} 22. Rxe8 {[%emt 0:03:25]} Rxe8 {[%emt 0:00:31]} 23. axb6 {[%emt 0:00:40]} axb6 {[%emt 0:00:26]} 24. Nfe3 {[%emt 0:01:37]} Qf4 {[%emt 0:02:48][%cal Oe8e3] ...Rxe3! is the strong threat.} 25. Qf5 {[%emt 0:04:39]} Qxf5 {[%emt 0:11:28]} 26. Nxf5 {[%emt 0:00:12]} Bxc4 {[%emt 0:01:53]} 27. Nxd6 {[%emt 0:00:10]} Re2 $1 {[%emt 0:06:11]} 28. Nxc4 {[%emt 0:00:30]} b5 {[%emt 0:00:00]} 29. Kf1 {[%emt 0:10:47]} Rc2 {[%emt 0:00:14]} 30. Ne3 {[%emt 0:20:22]} Rxb2 {[%emt 0:00:11]} 31. Rd1 {[%emt 0:00:34]} Kf8 {[%emt 0:02:16]} ({Much worse is} 31... Bxc3 32. d6 Bf6 (32... g3 $2 33. d7 $18) 33. Nxg4 $11) 32. d6 {[%emt 0:12:43]} Ke8 $1 {[%emt 0:00:50]} 33. Nd5 {[%emt 0:01:22] [#]} (33. Rd5 $11 {remains equal.}) 33... Kd7 $2 {[%emt 0:03:07]} (33... Kd8 $1 $17 {stays on course.} 34. Ra1 Kd7) 34. Nb6+ $16 {[%emt 0:00:33]} Kc6 {[%emt 0:00:12][%cal Og7c3] Threatens to win with ...Bxc3!} 35. d7 {[%emt 0:02:23]} Bf6 {[%emt 0:00:07]} 36. Nc8 {[%emt 0:01:06] aiming for Rd6+.} Bd8 {[%emt 0:03:28] [#]} 37. Nd6 $1 {[%emt 0:01:21]} Ra2 {[%emt 0:01:15]} (37... Kc7 $142) 38. Nxf7 $16 {[%emt 0:00:48]} Ra8 {[%emt 0:00:10]} (38... Kc7 $16 {was worth a try.} 39. g3 (39. Nxh6 b4 $18) 39... Ra8) 39. Nxh6 $18 {[%emt 0:01:21]} b4 {[%emt 0:00:20]} 40. cxb4 {[%emt 0:03:06]} cxb4 {[%emt 0:00:02]} 41. Nxg4 {[%emt 0:51:16]} b3 {[%emt 0:06:04]} 42. Rb1 {[%emt 0:00:00]} Rb8 {[%emt 0:01:46]} 43. Ne5+ {[%emt 0:00:00]} Kd5 $2 {[%emt 0:02:30]} (43... Kc7 {was necessary.} 44. Rc1+ Kd6) 44. f4 $18 {[%emt 0:00:00]} Bf6 {[%emt 0:20:14]} 45. Ke2 {[%emt 0:00:00]} Ke4 {[%emt 0:09:40]} 46. g3 {[%emt 0:00:00]} b2 {[%emt 0:04:59]} 47. Nc6 {[%emt 0:00:00]} Rh8 {[%emt 0:07:57]} 48. h4 {[%emt 0:00:00]} 1-0